fUSD/lending_fUSD_20240615
["ID","MTS","AMOUNT","RATE_DAILY","PERIOD"]
[329559282,1718435475735,-500.0,0.00022465,3]
[329559283,1718435475747,-500.0,0.00022465,3]
[329559284,1718435475774,-642.33578835,0.00022465,3]
[329559285,1718435475811,-500.0,0.00022465,3]
[329559286,1718435475827,-500.0,0.00022465,3]
[329559287,1718435475840,-500.0,0.00022465,3]
[329559288,1718435475850,-707.83,0.00022465,3]
[329559289,1718435475861,-500.0,0.00022465,3]
[329559290,1718435475900,-500.0,0.00022465,3]
[329559291,1718435475913,-500.0,0.00022465,3]
[329559292,1718435475926,-515.73435689,0.00022465,3]
[329559293,1718435475960,-500.0,0.00022465,3]
[329559294,1718435476004,-0.08766935,0.00022465,3]
[329559295,1718435476035,-499.91233065,0.00022465,3]
[329559296,1718435476055,-500.0,0.00022465,3]
[329559297,1718435476070,-771.5,0.00022465,3]
[329559298,1718435476102,-500.0,0.00022465,3]
[329559299,1718435476118,-500.0,0.00022465,3]
[329559300,1718435476148,-500.0,0.00022465,3]
[329559301,1718435476160,-500.0,0.00022465,3]
[329559302,1718435476174,-740.54,0.00022465,3]
[329559303,1718435476200,-500.0,0.00022465,3]
[329559304,1718435476213,-500.0,0.00022465,3]
[329559305,1718435476244,-500.0,0.00022465,3]
[329559306,1718435476257,-500.0,0.00022465,3]
[329559307,1718435476281,-500.0,0.00022465,3]
[329559308,1718435476296,-591.0034053,0.00022465,3]
[329559309,1718435476324,-500.0,0.00022465,3]
[329559310,1718435476338,-500.0,0.00022465,3]
[329559311,1718435476373,-512.94460442,0.00022465,3]
[329559312,1718435476400,-500.0,0.00022465,3]
[329559313,1718435476425,-500.0,0.00022465,3]
[329559314,1718435476436,-500.0,0.00022465,3]
[329559315,1718435476452,-500.0,0.00022465,3]
[329559316,1718435476477,-500.0,0.00022465,3]
[329559317,1718435476511,-500.0,0.00022465,3]
[329559318,1718435476525,-500.0,0.00022465,3]
[329559319,1718435476537,-500.0,0.00022465,3]
[329559320,1718435476548,-500.0,0.00022465,3]
[329559321,1718435476579,-500.0,0.00022465,3]
[329559322,1718435476604,-824.09,0.00022465,3]
[329559323,1718435476643,-500.0,0.00022465,3]
[329559324,1718435476656,-500.0,0.00022465,3]
[329559325,1718435476674,-500.0,0.00022465,3]
[329559326,1718435476688,-554.5,0.00022465,3]
[329559327,1718435476739,-500.0,0.00022465,3]
[329559328,1718435476762,-500.0,0.00022465,3]
[329559329,1718435476832,-500.0,0.00022465,3]
[329559330,1718435476844,-500.0,0.00022465,3]
[329559331,1718435476854,-500.0,0.00022465,3]
[329559332,1718435476872,-201.80952315,0.00022465,3]
[329559333,1718435476882,-500.0,0.00022465,3]
[329559334,1718435476896,-500.0,0.00022465,3]
[329559335,1718435476938,-500.0,0.00022465,3]
[329559336,1718435476962,-500.0,0.00022465,3]
[329559337,1718435476983,-500.0,0.00022465,3]
[329559338,1718435477000,-500.0,0.00022465,3]
[329559339,1718435477017,-500.0,0.00022465,3]
[329559340,1718435477042,-568.93013177,0.00022465,3]
[329559341,1718435477064,-599.71,0.00022465,3]
[329559342,1718435477081,-500.0,0.00022465,3]
[329559343,1718435477105,-248.82397586,0.00022465,3]
[329559344,1718435477152,-500.0,0.00022465,3]
[329559345,1718435477192,-502.96,0.00022465,3]
[329559346,1718435477216,-503.13486936,0.00022465,3]
[329559347,1718435477232,-500.0,0.00022465,3]
[329559348,1718435477267,-500.0,0.00022465,3]
[329559349,1718435477278,-500.0,0.00022465,3]
[329559350,1718435477309,-500.0,0.00022465,3]
[329559351,1718435477328,-822.0,0.00022465,3]
[329559352,1718435477339,-500.0,0.00022465,3]
[329559353,1718435477352,-500.0,0.00022465,3]
[329559354,1718435477377,-500.0,0.00022465,3]
[329559355,1718435477397,-500.0,0.00022465,3]
[329559356,1718435477416,-223.9088055,0.00022465,3]
[329559357,1718435477433,-500.0,0.00022465,3]
[329559358,1718435477444,-500.0,0.00022465,3]
[329559359,1718435477609,-500.0,0.00022465,3]
[329559360,1718435477621,-500.0,0.00022465,3]
[329559361,1718435477631,-807.24,0.00022465,3]
[329559362,1718435477642,-500.0,0.00022465,3]
[329559363,1718435477655,-500.0,0.00022465,3]
[329559364,1718435477670,-500.0,0.00022465,3]
[329559365,1718435477683,-500.0,0.00022465,3]
[329559366,1718435477701,-500.0,0.00022465,3]
[329559367,1718435477712,-500.0,0.00022465,3]
[329559368,1718435477734,-500.0,0.00022465,3]
[329559369,1718435477745,-500.0,0.00022465,3]
[329559370,1718435477758,-611.01,0.00022465,3]
[329559371,1718435477773,-625.17823883,0.00022465,3]
[329559372,1718435477784,-500.0,0.00022465,3]
[329559373,1718435477796,-500.0,0.00022465,3]
[329559374,1718435477811,-500.0,0.00022465,3]
[329559375,1718435477859,-1289.88,0.00022465,3]
[329559376,1718435477870,-500.0,0.00022465,3]
[329559377,1718435477903,-500.0,0.00022465,3]
[329559378,1718435477914,-500.0,0.00022465,3]
[329559379,1718435477925,-1155.63,0.00022465,3]
[329559380,1718435477937,-500.0,0.00022465,3]
[329559381,1718435477958,-557.85,0.00022465,3]
[329559382,1718435477968,-500.0,0.00022465,3]
[329559383,1718435477981,-737.15,0.00022465,3]
[329559384,1718435477993,-1487.32,0.00022465,3]
[329559385,1718435478004,-500.0,0.00022465,3]
[329559386,1718435478015,-1389.77,0.00022465,3]
[329559387,1718435478026,-500.0,0.00022465,3]
[329559388,1718435478037,-831.05,0.00022465,3]
[329559389,1718435478047,-500.0,0.00022465,3]
[329559390,1718435478067,-500.0,0.00022465,3]
[329559391,1718435478079,-151.0,0.00022465,7]
[329559392,1718435478090,-1032.95,0.00022465,3]
[329559393,1718435478101,-589.32,0.00022465,3]
[329559394,1718435478112,-500.0,0.00022465,3]
[329559395,1718435478124,-1276.13,0.00022465,3]
[329559396,1718435478136,-500.0,0.00022465,3]
[329559397,1718435478146,-500.0,0.00022465,3]
[329559398,1718435478157,-1199.7,0.00022465,3]
[329559399,1718435478167,-500.0,0.00022465,3]
[329559400,1718435478177,-353.88438419,0.00022465,3]
[329559401,1718435478187,-976.11,0.00022465,3]
[329559402,1718435478198,-500.0,0.00022465,3]
[329559403,1718435478210,-500.0,0.00022465,3]
[329559404,1718435478220,-500.0,0.00022465,3]
[329559405,1718435478244,-500.0,0.00022465,3]
[329559406,1718435478261,-500.0,0.00022465,3]
[329559407,1718435478272,-703.58,0.00022465,3]
[329559408,1718435478284,-1002.58,0.00022465,3]
[329559409,1718435478297,-500.0,0.00022465,3]
[329559410,1718435478319,-686.26,0.00022465,3]
[329559411,1718435478361,-500.0,0.00022465,3]
[329559412,1718435478376,-1071.43,0.00022465,3]
[329559413,1718435478388,-583.66,0.00022465,3]
[329559414,1718435478405,-500.0,0.00022465,3]
[329559415,1718435478417,-902.51,0.00022465,3]
[329559416,1718435478432,-500.0,0.00022465,3]
[329559417,1718435478445,-500.0,0.00022465,3]
[329559418,1718435478457,-790.17,0.00022465,3]
[329559419,1718435478468,-848.03,0.00022465,3]
[329559420,1718435478482,-500.0,0.00022465,3]
[329559421,1718435478506,-500.0,0.00022465,3]
[329559422,1718435478518,-500.0,0.00022465,3]
[329559423,1718435478530,-377.89066407,0.00022465,3]
[329559424,1718435478554,-500.0,0.00022465,3]
[329559425,1718435478565,-1089.4,0.00022465,3]
[329559426,1718435478579,-650.43,0.00022465,3]
[329559427,1718435478596,-456.49484378,0.00022465,3]
[329559428,1718435478609,-500.0,0.00022465,3]
[329559429,1718435478622,-718.06,0.00022465,3]
[329559430,1718435478633,-1056.95,0.00022465,3]
[329559431,1718435478644,-500.0,0.00022465,3]
[329559432,1718435478672,-500.0,0.00022465,3]
[329559433,1718435478697,-629.76250177,0.00022465,3]
[329559434,1718435478708,-500.0,0.00022465,3]
[329559435,1718435478720,-1215.11,0.00022465,3]
[329559436,1718435478732,-500.0,0.00022465,3]
[329559437,1718435478745,-803.0,0.00022465,3]
[329559438,1718435478762,-500.0,0.00022465,3]
[329559439,1718435478816,-500.0,0.00022465,3]
[329559440,1718435478841,-500.0,0.00022465,3]
[329559441,1718435478860,-573.32,0.00022465,3]
[329559442,1718435478877,-500.0,0.00022465,3]
[329559443,1718435478905,-500.0,0.00022465,3]
[329559444,1718435478918,-500.0,0.00022465,3]
[329559445,1718435478931,-500.0,0.00022465,3]
[329559446,1718435478944,-500.0,0.00022465,3]
[329559447,1718435478965,-500.0,0.00022465,3]
[329559448,1718435478993,-500.0,0.00022465,3]
[329559449,1718435479013,-2731.05,0.00022465,3]
[329559450,1718435479061,-500.0,0.00022465,3]
[329559451,1718435479080,-500.0,0.00022465,3]
[329559452,1718435479097,-500.0,0.00022465,3]
[329559453,1718435479125,-500.0,0.00022465,3]
[329559454,1718435479141,-500.0,0.00022465,3]
[329559455,1718435479181,-500.0,0.00022465,3]
[329559456,1718435479228,-500.0,0.00022465,3]
[329559457,1718435479239,-500.0,0.00022465,3]
[329559458,1718435479252,-339.86733328,0.00022465,3]
[329559459,1718435479282,-160.13266672,0.00022465,3]
[329559460,1718435479296,-500.0,0.00022465,3]
[329559461,1718435479324,-190.68971235,0.00022465,3]
[329559462,1718435479345,-309.31028765,0.00022465,3]
[329559463,1718435479400,-469.32173918,0.00022465,3]
[329559464,1718435479535,-30.67826082,0.00022465,3]
[329559465,1718435479547,-500.0,0.00022465,3]
[329559466,1718435479576,-500.0,0.00022465,3]
[329559467,1718435479593,-500.0,0.00022465,3]
[329559468,1718435479608,-500.0,0.00022465,3]
[329559469,1718435479621,-500.0,0.00022465,3]
[329559470,1718435479644,-500.0,0.00022465,3]
[329559471,1718435479658,-500.0,0.00022465,3]
[329559472,1718435479677,-855.00406899,0.00022465,3]
[329559473,1718435479710,-108.89593101,0.00022465,3]
[329559474,1718435479751,-500.0,0.00022465,3]
[329559475,1718435479768,-500.0,0.00022465,3]
[329559476,1718435479780,-500.0,0.00022465,3]
[329559477,1718435479818,-19.95033869,0.00022465,3]
[329559478,1718435479858,-480.04966131,0.00022465,3]
[329559479,1718435479877,-365.53099733,0.00022465,3]
[329559480,1718435479923,-5.22900267,0.00022465,3]
[329559481,1718435479961,-374.99094697,0.00022465,3]
[329559482,1718435479974,-125.00905303,0.00022465,3]
[329559483,1718435479986,-286.81264762,0.00022465,3]
[329559484,1718435480008,-1144.71735238,0.00022465,3]
[329559485,1718435480044,-500.0,0.00022465,3]
[329559486,1718435480058,-885.6,0.00022465,3]
[329559487,1718435480092,-500.0,0.00022465,3]
[329559488,1718435480103,-500.0,0.00022465,3]
[329559489,1718435480166,-500.0,0.00022465,3]
[329559490,1718435480180,-500.0,0.00022465,3]
[329559491,1718435480252,-888.92,0.00022465,3]
[329559492,1718435480279,-835.96,0.00022465,3]
[329559493,1718435480299,-500.0,0.00022465,3]
[329559494,1718435480318,-500.0,0.00022465,3]
[329559495,1718435480339,-500.0,0.00022465,3]
[329559496,1718435480371,-500.0,0.00022465,3]
[329559497,1718435480398,-850.81,0.00022465,3]
[329559498,1718435480412,-500.0,0.00022465,3]
[329559499,1718435480429,-506.85316086,0.00022465,3]
[329559500,1718435480441,-500.0,0.00022465,3]
[329559501,1718435480453,-500.0,0.00022465,3]
[329559502,1718435480475,-500.0,0.00022465,3]
[329559503,1718435480501,-500.0,0.00022465,3]
[329559504,1718435480524,-500.0,0.00022465,3]
[329559505,1718435480561,-508.66,0.00022465,3]
[329559506,1718435480575,-266.25184253,0.00022465,3]
[329559507,1718435480591,-500.0,0.00022465,3]
[329559508,1718435480610,-500.0,0.00022465,3]
[329559509,1718435480636,-500.0,0.00022465,3]
[329559510,1718435480662,-500.0,0.00022465,3]
[329559511,1718435480673,-12.39657839,0.00022465,3]
[329559512,1718435481125,-545.51,0.00021917,2]
[329559513,1718435481137,-198.86299843,0.00022465,3]
[329559514,1718435481148,-832.43,0.00022465,3]
[329559515,1718435481160,-500.0,0.00022465,3]
[329559516,1718435481174,-252.60005716,0.00022465,3]
[329559517,1718435482610,-247.39994284,0.00022465,3]
[329559518,1718435482631,-405.91276408,0.00022465,3]
[329559519,1718435482644,-94.08723592,0.00022465,3]
[329559520,1718435482681,-500.0,0.00022465,3]
[329559521,1718435482697,-500.0,0.00022465,3]
[329559522,1718435482713,-566.59,0.00022465,3]
[329559523,1718435482729,-671.51,0.00022465,3]
[329559524,1718435482746,-500.0,0.00022465,3]
[329559525,1718435482762,-500.0,0.00022465,3]
[329559526,1718435482818,-500.0,0.00022465,3]
[329559527,1718435482865,-500.0,0.00022465,3]
[329559528,1718435482877,-500.0,0.00022465,3]
[329559529,1718435482938,-500.0,0.00022465,3]
[329559530,1718435482999,-500.0,0.00022465,3]
[329559531,1718435483031,-500.0,0.00022465,3]
[329559532,1718435483069,-500.0,0.00022465,3]
[329559533,1718435483145,-534.54,0.00022465,3]
[329559534,1718435483164,-500.0,0.00022465,3]
[329559535,1718435483186,-682.31,0.00022465,3]
[329559536,1718435483227,-500.0,0.00022465,3]
[329559537,1718435483272,-500.0,0.00022465,3]
[329559538,1718435483299,-500.0,0.00022465,3]
[329559539,1718435483315,-691.49,0.00022465,3]
[329559540,1718435483327,-500.0,0.00022465,3]
[329559541,1718435483364,-500.0,0.00022465,3]
[329559542,1718435483390,-705.21,0.00022465,3]
[329559543,1718435483465,-500.0,0.00022465,3]
[329559544,1718435483484,-613.4,0.00022465,3]
[329559545,1718435483509,-500.0,0.00022465,3]
[329559546,1718435483573,-500.0,0.00022465,3]
[329559547,1718435483612,-823.04,0.00022465,3]
[329559548,1718435483645,-500.0,0.00022465,3]
[329559549,1718435483688,-500.0,0.00022465,3]
[329559550,1718435483716,-500.0,0.00022465,3]
[329559551,1718435483727,-500.0,0.00022465,3]
[329559552,1718435483762,-500.0,0.00022465,3]
[329559553,1718435483788,-687.19,0.00022465,3]
[329559554,1718435483801,-500.0,0.00022465,3]
[329559555,1718435483811,-570.33,0.00022465,3]
[329559556,1718435483844,-500.0,0.00022465,3]
[329559557,1718435483966,-703.81,0.00022465,3]
[329559558,1718435483999,-500.0,0.00022465,3]
[329559559,1718435484092,-500.0,0.00022465,3]
[329559560,1718435484108,-500.0,0.00022465,3]
[329559561,1718435484134,-500.0,0.00022465,3]
[329559562,1718435484160,-500.0,0.00022465,3]
[329559563,1718435484178,-1101.89,0.00022465,3]
[329559564,1718435484227,-500.0,0.00022465,3]
[329559565,1718435484241,-500.0,0.00022465,3]
[329559566,1718435484256,-500.0,0.00022465,3]
[329559567,1718435484267,-500.0,0.00022465,3]
[329559568,1718435484282,-500.0,0.00022465,3]
[329559569,1718435484313,-500.0,0.00022465,3]
[329559570,1718435484343,-500.0,0.00022465,3]
[329559571,1718435484383,-770.81,0.00022465,3]
[329559572,1718435484410,-615.85,0.00022465,3]
[329559573,1718435484442,-634.38,0.00022465,3]
[329559574,1718435484466,-500.0,0.00022465,3]
[329559575,1718435484478,-500.0,0.00022465,3]
[329559576,1718435484510,-500.0,0.00022465,3]
[329559577,1718435484533,-500.0,0.00022465,3]
[329559578,1718435484560,-500.0,0.00022465,3]
[329559579,1718435484590,-500.0,0.00022465,3]
[329559580,1718435484605,-500.0,0.00022465,3]
[329559581,1718435484616,-500.0,0.00022465,3]
[329559582,1718435484633,-603.52,0.00022465,3]
[329559583,1718435484665,-500.0,0.00022465,3]
[329559584,1718435484681,-500.0,0.00022465,3]
[329559585,1718435484704,-500.0,0.00022465,3]
[329559586,1718435484715,-500.0,0.00022465,3]
[329559587,1718435484803,-500.0,0.00022465,3]
[329559588,1718435484821,-500.0,0.00022465,3]
[329559589,1718435484861,-500.0,0.00022465,3]
[329559590,1718435484890,-500.0,0.00022465,3]
[329559591,1718435484905,-870.1,0.00022465,3]
[329559592,1718435484927,-500.0,0.00022465,3]
[329559593,1718435484977,-500.0,0.00022465,3]
[329559594,1718435484998,-500.0,0.00022465,3]
[329559595,1718435485018,-500.0,0.00022465,3]
[329559596,1718435485049,-500.0,0.00022465,3]
[329559597,1718435485061,-500.0,0.00022465,3]
[329559598,1718435485075,-966.75,0.00022465,3]
[329559599,1718435485124,-500.0,0.00022465,3]
[329559600,1718435485273,-500.0,0.00022465,3]
[329559601,1718435485291,-500.0,0.00022465,3]
[329559602,1718435485316,-731.46,0.00022465,3]
[329559603,1718435485333,-664.71,0.00022465,3]
[329559604,1718435485344,-701.44,0.00022465,3]
[329559605,1718435485354,-662.37,0.00022465,3]
[329559606,1718435485365,-500.0,0.00022465,3]
[329559607,1718435485376,-614.8,0.00022465,3]
[329559608,1718435485391,-520.83842169,0.00022465,3]
[329559609,1718435485403,-500.0,0.00022465,3]
[329559610,1718435485414,-500.0,0.00022465,3]
[329559611,1718435485440,-265.4376656,0.00022465,3]
[329559612,1718435485452,-500.0,0.00022465,3]
[329559613,1718435485462,-500.0,0.00022465,3]
[329559614,1718435485478,-710.33,0.00022465,3]
[329559615,1718435485488,-500.0,0.00022465,3]
[329559616,1718435485500,-500.0,0.00022465,3]
[329559617,1718435485525,-500.0,0.00022465,3]
[329559618,1718435485543,-500.0,0.00022465,3]
[329559619,1718435485570,-500.0,0.00022465,3]
[329559620,1718435485582,-500.0,0.00022465,3]
[329559621,1718435485601,-560.42,0.00022465,3]
[329559622,1718435485635,-500.0,0.00022465,3]
[329559623,1718435485646,-808.6,0.00022465,3]
[329559624,1718435485658,-515.22,0.00022465,3]
[329559625,1718435485672,-500.0,0.00022465,3]
[329559626,1718435485689,-500.0,0.00022465,3]
[329559627,1718435485708,-500.0,0.00022465,3]
[329559628,1718435485720,-500.0,0.00022465,3]
[329559629,1718435485730,-617.12,0.00022465,3]
[329559630,1718435485756,-1899.11,0.00022465,3]
[329559631,1718435485768,-500.0,0.00022465,3]
[329559632,1718435485778,-500.0,0.00022465,3]
[329559633,1718435485789,-500.0,0.00022465,3]
[329559634,1718435485801,-500.0,0.00022465,3]
[329559635,1718435485811,-500.0,0.00022465,3]
[329559636,1718435485823,-500.0,0.00022465,3]
[329559637,1718435485834,-500.0,0.00022465,3]
[329559638,1718435485846,-2550.06,0.00022465,3]
[329559639,1718435485857,-500.0,0.00022465,3]
[329559640,1718435485867,-500.0,0.00022465,3]
[329559641,1718435485878,-500.0,0.00022465,3]
[329559642,1718435485888,-500.0,0.00022465,3]
[329559643,1718435485901,-500.0,0.00022465,3]
[329559644,1718435485932,-500.0,0.00022465,3]
[329559645,1718435485944,-500.0,0.00022465,3]
[329559646,1718435485954,-362.71,0.00022465,3]
[329559647,1718435485984,-500.0,0.00022465,3]
[329559648,1718435485995,-500.0,0.00022465,3]
[329559649,1718435486006,-500.0,0.00022465,3]
[329559650,1718435486017,-500.0,0.00022465,3]
[329559651,1718435486027,-659.67,0.00022465,3]
[329559652,1718435486037,-771.84,0.00022465,3]
[329559653,1718435486048,-500.0,0.00022465,3]
[329559654,1718435486059,-731.68,0.00022465,3]
[329559655,1718435486070,-500.0,0.00022465,3]
[329559656,1718435486082,-806.48,0.00022465,3]
[329559657,1718435486092,-500.0,0.00022465,3]
[329559658,1718435486104,-500.0,0.00022465,3]
[329559659,1718435486124,-500.0,0.00022465,3]
[329559660,1718435486136,-500.0,0.00022465,3]
[329559661,1718435486148,-500.0,0.00022465,3]
[329559662,1718435486160,-500.0,0.00022465,3]
[329559663,1718435486172,-500.0,0.00022465,3]
[329559664,1718435486182,-500.0,0.00022465,3]
[329559665,1718435486200,-509.44809776,0.00022465,3]
[329559666,1718435486213,-500.0,0.00022465,3]
[329559667,1718435486224,-277.81075639,0.00022465,3]
[329559668,1718435486257,-609.17025973,0.00022465,3]
[329559669,1718435486270,-509.85,0.00022465,3]
[329559670,1718435486281,-817.61,0.00022465,3]
[329559671,1718435486294,-500.0,0.00022465,3]
[329559672,1718435486312,-500.0,0.00022465,3]
[329559673,1718435486323,-500.0,0.00022465,3]
[329559674,1718435486337,-500.0,0.00022465,3]
[329559675,1718435486360,-500.0,0.00022465,3]
[329559676,1718435486373,-500.0,0.00022465,3]
[329559677,1718435486400,-500.0,0.00022465,3]
[329559678,1718435486468,-252.44,0.00022465,3]
[329559679,1718435486481,-500.0,0.00022465,3]
[329559680,1718435486494,-500.0,0.00022465,3]
[329559681,1718435486505,-500.0,0.00022465,3]
[329559682,1718435486524,-500.0,0.00022465,3]
[329559683,1718435486549,-500.0,0.00022465,3]
[329559684,1718435486563,-500.0,0.00022465,3]
[329559685,1718435486577,-500.0,0.00022465,3]
[329559686,1718435486595,-500.0,0.00022465,3]
[329559687,1718435486611,-500.0,0.00022465,3]
[329559688,1718435486631,-1131.56,0.00022465,3]
[329559689,1718435486692,-2621.56,0.00022465,3]
[329559690,1718435486709,-500.0,0.00022465,3]
[329559691,1718435486726,-533.48662257,0.00022465,3]
[329559692,1718435486756,-701.85,0.00022465,3]
[329559693,1718435486774,-500.0,0.00022465,3]
[329559694,1718435486788,-507.7,0.00022465,3]
[329559695,1718435486808,-500.0,0.00022465,3]
[329559696,1718435486828,-500.0,0.00022465,3]
[329559697,1718435486851,-177.51590191,0.00022465,3]
[329559698,1718435486874,-500.0,0.00022465,3]
[329559699,1718435486889,-500.0,0.00022465,3]
[329559700,1718435486909,-500.0,0.00022465,3]
[329559701,1718435486935,-595.12,0.00022465,3]
[329559702,1718435486949,-601.11412687,0.00022465,3]
[329559703,1718435486981,-500.0,0.00022465,3]
[329559704,1718435487002,-689.81,0.00022465,3]
[329559705,1718435487018,-500.0,0.00022465,3]
[329559706,1718435487047,-500.0,0.00022465,3]
[329559707,1718435487087,-500.0,0.00022465,3]
[329559708,1718435487104,-500.0,0.00022465,3]
[329559709,1718435487126,-500.0,0.00022465,3]
[329559710,1718435487144,-500.0,0.00022465,3]
[329559711,1718435487174,-500.0,0.00022465,3]
[329559712,1718435487203,-500.0,0.00022465,3]
[329559713,1718435487218,-500.0,0.00022465,3]
[329559714,1718435487238,-2711.4,0.00022465,3]
[329559715,1718435487280,-729.65,0.00022465,3]
[329559716,1718435487292,-562.99,0.00022465,3]
[329559717,1718435487306,-500.0,0.00022465,3]
[329559718,1718435487322,-500.0,0.00022465,3]
[329559719,1718435487340,-500.0,0.00022465,3]
[329559720,1718435487355,-726.57,0.00022465,3]
[329559721,1718435487371,-500.0,0.00022465,3]
[329559722,1718435487394,-500.0,0.00022465,3]
[329559723,1718435487408,-500.0,0.00022465,3]
[329559724,1718435487422,-696.68,0.00022465,3]
[329559725,1718435487442,-500.0,0.00022465,3]
[329559726,1718435487473,-500.0,0.00022465,3]
[329559727,1718435487510,-551.97,0.00022465,3]
[329559728,1718435487541,-500.0,0.00022465,3]
[329559729,1718435487553,-500.0,0.00022465,3]
[329559730,1718435487572,-500.0,0.00022465,3]
[329559731,1718435487598,-903.88,0.00022465,3]
[329559732,1718435487610,-602.84,0.00022465,3]
[329559733,1718435487622,-500.0,0.00022465,3]
[329559734,1718435487634,-500.0,0.00022465,3]
[329559735,1718435487665,-500.0,0.00022465,3]
[329559736,1718435487680,-697.5,0.00022465,3]
[329559737,1718435487713,-1574.67,0.00022465,3]
[329559738,1718435487732,-500.0,0.00022465,3]
[329559739,1718435487757,-500.0,0.00022465,3]
[329559740,1718435487772,-521.82,0.00022465,3]
[329559741,1718435487792,-500.0,0.00022465,3]
[329559742,1718435487829,-500.0,0.00022465,3]
[329559743,1718435487854,-500.0,0.00022465,3]
[329559744,1718435487886,-500.0,0.00022465,3]
[329559745,1718435487913,-1511.73,0.00022465,3]
[329559746,1718435487936,-500.0,0.00022465,3]
[329559747,1718435487980,-500.0,0.00022465,3]
[329559748,1718435487997,-500.0,0.00022465,3]
[329559749,1718435488028,-500.0,0.00022465,3]
[329559750,1718435488045,-500.0,0.00022465,3]
[329559751,1718435488058,-500.0,0.00022465,3]
[329559752,1718435488078,-500.0,0.00022465,3]
[329559753,1718435488105,-584.58,0.00022465,3]
[329559754,1718435488136,-500.0,0.00022465,3]
[329559755,1718435488148,-1555.92,0.00022465,3]
[329559756,1718435488194,-570.43,0.00022465,3]
[329559757,1718435488220,-500.0,0.00022465,3]
[329559758,1718435488264,-500.0,0.00022465,3]
[329559759,1718435488316,-500.0,0.00022465,3]
[329559760,1718435488375,-1590.72,0.00022465,3]
[329559761,1718435488388,-502.32,0.00022465,3]
[329559762,1718435488406,-500.0,0.00022465,3]
[329559763,1718435488424,-806.62,0.00022465,3]
[329559764,1718435488445,-687.56,0.00022465,3]
[329559765,1718435488496,-540.26,0.00022465,3]
[329559766,1718435488508,-991.29,0.00022465,3]
[329559767,1718435488522,-500.0,0.00022465,3]
[329559768,1718435488536,-500.0,0.00022465,3]
[329559769,1718435488556,-500.0,0.00022465,3]
[329559770,1718435488580,-500.0,0.00022465,3]
[329559771,1718435488604,-3493.07,0.00022465,3]
[329559772,1718435488619,-165.839832,0.00022465,7]
[329559773,1718435488652,-165.839832,0.00022465,7]
[329559774,1718435488663,-500.0,0.00022465,3]
[329559775,1718435488683,-922.19,0.00022465,3]
[329559776,1718435488699,-500.0,0.00022465,3]
[329559777,1718435488716,-165.839832,0.00022465,7]
[329559778,1718435488736,-500.0,0.00022465,3]
[329559779,1718435488748,-165.839832,0.00022465,7]
[329559780,1718435488768,-500.0,0.00022465,3]
[329559781,1718435488793,-500.0,0.00022465,3]